[Event "GER-chT Youth Countries 2020"]
[Site "Berlin"]
[Date "2020.10.02"]
[Round "4"]
[White "Haubold, Sebastian Marcel"]
[Black "Yue, Qizhou"]
[Result "1-0"]
[ECO "B49"]
[WhiteElo "1769"]
[BlackElo "1775"]
[Annotator "NA"]
[PlyCount "83"]
[EventDate "2020.09.30"]
[EventType "team-tourn"]
[EventRounds "7"]
[EventCountry "GER"]
[SourceTitle "playchess.com"]
[Source "ChessBase"]
[SourceQuality "1"]
[TimeControl "30/5400+30:0"]

1. e4 c5 2. Nf3 {[%emt 0:00:20]} e6 {[%emt 0:00:05]} 3. d4 {[%emt 0:00:05]} cxd4 {[%emt 0:00:04]} 4. Nxd4 Nc6 5. Nc3 {[%emt 0:01:07]} Qc7 {[%emt 0:00:38]} 6. Be2 {[%emt 0:01:04]} a6 {[%emt 0:00:11]} 7. Be3 {[%emt 0:00:16]} Nf6 {[%emt 0:01:23]} 8. a3 {[%emt 0:00:21]} Be7 {[%emt 0:03:15]} 9. f4 d6 10. g4 {[%emt 0:03:49]} Nxd4 {[%emt 0:07:46]} 11. Qxd4 {[%emt 0:02:25]} e5 {[%emt 0:01:45]} 12. Qd2 {[%emt 0:07:10]} Bxg4 {[%emt 0:06:32]} 13. O-O-O {[%emt 0:05:15]} Be6 {[%emt 0:08:41]} 14. Rhg1 {[%emt 0:07:09]} g6 {[%emt 0:12:10]} 15. Rgf1 {[%emt 0:12:36]} O-O-O {[%emt 0:07:42]} 16. f5 {[%emt 0:13:18]} gxf5 {[%emt 0:02:39]} 17. exf5 {[%emt 0:05:31]} Bd7 {[%emt 0:03:01]} 18. Bg5 {[%emt 0:02:01]} Bc6 {[%emt 0:03:04]} 19. Bxf6 {[%emt 0:04:10]} Bxf6 {[%emt 0:00:09]} 20. Nd5 {[%emt 0:00:10]} Bxd5 {[%emt 0:00:40]} 21. Qxd5 {[%emt 0:00:10]} Rhg8 {[%emt 0:13:58]} 22. Rf3 {[%emt 0:02:57]} e4 {[%emt 0:03:21]} 23. Rb3 {[%emt 0:06:01]} Rge8 {[%emt 0:03:21]} 24. Bh5 {[%emt 0:07:56]} Re5 {[%emt 0:02:20]} 25. Qxf7 {[%emt 0:02:12]} Qxf7 {[%emt 0:00:26]} 26. Bxf7 {[%emt 0:00:08]} d5 {[%emt 0:03:48]} 27. Be6+ {[%emt 0:03:35]} Kb8 {[%emt 0:01:26]} 28. Re1 {[%emt 0:01:32]} h6 {[%emt 0:02:48]} 29. Re2 {[%emt 0:03:23]} e3 {[%emt 0:01:22]} 30. Kd1 {[%emt 0:01:15]} d4 {[%emt 0:00:18]} 31. Rd3 {[%emt 1:30:58]} Rb5 {[%emt 1:31:20]} 32. Rb3 {[%emt 0:01:00]} Rxb3 {[%emt 0:00:15]} 33. Bxb3 {[%emt 0:00:04]} Kc7 {[%emt 0:01:51]} 34. Bc4 Rd7 {[%emt 0:03:37]} 35. Rg2 {[%emt 0:02:14]} Bg5 {[%emt 0:01:46]} 36. Ke2 {[%emt 0:01:02]} Kd6 {[%emt 0:01:10]} 37. Rg4 {[%emt 0:00:31]} Ke5 {[%emt 0:01:15]} 38. Bd3 {[%emt 0:00:20]} Bf6 {[%emt 0:02:14]} 39. Re4+ {[%emt 0:03:21]} Kd5 {[%emt 0:01:12]} 40. Re6 {[%emt 0:00:42]} Rd6 {[%emt 0:01:44]} 41. Be4+ {[%emt 0:00:35]} Kc5 {[%emt 0:00:00]} 42. b4+ {[%emt 0:00:00]} 1-0

[Event "GER-chT Youth Countries 2020"]
[Site "Berlin"]
[Date "2020.10.02"]
[Round "4"]
[White "Basovskiy, Jana"]
[Black "Farokhi, Keyvan"]
[Result "0-1"]
[ECO "B19"]
[WhiteElo "1760"]
[BlackElo "2001"]
[Annotator "ChessBase"]
[PlyCount "52"]
[EventDate "2020.09.30"]
[EventType "team-tourn"]
[EventRounds "7"]
[EventCountry "GER"]
[SourceTitle "playchess.com"]
[Source "ChessBase"]
[SourceQuality "1"]
[TimeControl "30/5400+30:0"]

1. e4 {[%emt 0:00:00]} c6 {[%emt 0:00:00]} 2. d4 {[%emt 0:00:00]} d5 {[%emt 0:00:00]} 3. Nc3 {[%emt 0:00:00]} dxe4 {[%emt 0:00:06]} 4. Nxe4 {[%emt 0:00:00]} Bf5 {[%emt 0:00:12]} 5. Ng3 {[%emt 0:00:03]} Bg6 {[%emt 0:00:12]} 6. h4 {[%emt 0:00:05]} h6 {[%emt 0:00:06]} 7. Nf3 {[%emt 0:00:04]} Nd7 {[%emt 0:00:05]} 8. h5 {[%emt 0:00:04]} Bh7 {[%emt 0:00:02]} 9. Bd3 {[%emt 0:00:07]} Bxd3 {[%emt 0:00:05]} 10. Qxd3 {[%emt 0:00:03]} e6 {[%emt 0:00:11]} 11. Bd2 {[%emt 0:00:23]} Ngf6 {[%emt 0:00:10]} 12. O-O-O {[%emt 0:00:20]} Be7 {[%emt 0:00:08]} 13. Kb1 {[%emt 0:00:12]} O-O {[%emt 0:00:10]} 14. Ne4 Nxe4 {[%emt 0:00:03]} 15. Qxe4 {[%emt 0:00:17]} Nf6 {[%emt 0:00:02]} 16. Qe2 {[%emt 0:00:14]} Qd5 {[%emt 0:00:36]} 17. Be3 {[%emt 0:00:29]} b5 {[%emt 0:01:08]} 18. Ne5 {[%emt 0:14:12]} Bd6 {[%emt 0:04:53]} 19. f4 {[%emt 0:10:02]} Qe4 {[%emt 0:02:09]} 20. Rh3 {[%emt 0:09:18]} Nd5 {[%emt 0:08:08]} 21. Qf2 {[%emt 0:03:51]} Bxe5 {[%emt 0:00:05]} 22. dxe5 {[%emt 0:03:23]} Rfd8 {[%emt 0:02:43]} 23. Bc1 {[%emt 0:06:39]} Nc3+ {[%emt 0:00:26]} 24. Rxc3 {[%emt 0:03:28]} Rxd1 {[%emt 0:00:28]} 25. g4 {[%emt 0:04:04]} Rad8 {[%emt 0:01:17]} 26. b3 {[%emt 0:02:12]} b4 {[%emt 0:02:12]} 0-1

[Event "GER-chT Youth Countries 2020"]
[Site "Berlin"]
[Date "2020.10.02"]
[Round "4"]
[White "Braeutigam, Katerina"]
[Black "Uhlmann, Tim"]
[Result "0-1"]
[ECO "C89"]
[WhiteElo "1744"]
[BlackElo "1523"]
[Annotator "NA"]
[PlyCount "40"]
[EventDate "2020.09.30"]
[EventType "team-tourn"]
[EventRounds "7"]
[EventCountry "GER"]
[SourceTitle "playchess.com"]
[Source "ChessBase"]
[SourceQuality "1"]
[TimeControl "30/5400+30:0"]

1. e4 {[%emt 0:00:00]} e5 {[%emt 0:00:00]} 2. Nf3 {[%emt 0:00:00]} Nc6 {[%emt 0:00:00]} 3. Bb5 {[%emt 0:00:00]} a6 {[%emt 0:00:00]} 4. Ba4 {[%emt 0:00:00]} Nf6 {[%emt 0:00:00]} 5. O-O {[%emt 0:00:32]} Be7 {[%emt 0:00:45]} 6. Re1 {[%emt 0:00:45]} b5 {[%emt 0:00:07]} 7. Bb3 {[%emt 0:00:11]} O-O {[%emt 0:00:16]} 8. c3 {[%emt 0:02:03]} d5 {[%emt 0:00:23]} 9. exd5 {[%emt 0:02:03]} Nxd5 {[%emt 0:00:11]} 10. Nxe5 {[%emt 0:01:48]} Nxe5 {[%emt 0:00:17]} 11. Rxe5 {[%emt 0:00:13]} Nf6 {[%emt 0:00:04]} 12. d4 {[%emt 0:05:57]} Bd6 {[%emt 0:00:11]} 13. Re1 {[%emt 0:00:53]} Ng4 {[%emt 0:01:12]} 14. h3 {[%emt 0:01:41]} Nxf2 {[%emt 0:03:30]} 15. Qf3 {[%emt 0:08:18]} Qh4 {[%emt 0:00:26]} 16. Qxf2 {[%emt 0:01:54]} Bh2+ {[%emt 0:00:09]} 17. Kf1 {[%emt 0:00:47]} Bg3 {[%emt 0:00:12]} 18. Qe3 {[%emt 0:25:13]} Bxh3 {[%emt 0:01:57]} 19. Bd5 {[%emt 0:02:22]} Be6 {[%emt 0:10:26]} 20. Bf3 {[%emt 0:24:25]} Bc4+ {[%emt 0:00:20]} 0-1

[Event "GER-chT Youth Countries 2020"]
[Site "Berlin"]
[Date "2020.10.02"]
[Round "4"]
[White "Nitsche, Nikolai"]
[Black "Werner, Rosalie"]
[Result "0-1"]
[ECO "D02"]
[WhiteElo "1721"]
[BlackElo "1688"]
[Annotator "NA"]
[PlyCount "130"]
[EventDate "2020.09.30"]
[EventType "team-tourn"]
[EventRounds "7"]
[EventCountry "GER"]
[SourceTitle "playchess.com"]
[Source "ChessBase"]
[SourceQuality "1"]
[TimeControl "30/5400+30:0"]

1. d4 {[%emt 0:00:00]} Nf6 {[%emt 0:00:00]} 2. Nf3 {[%emt 0:00:00]} d5 {[%emt 0:00:43]} 3. Bf4 {[%emt 0:04:43]} e6 {[%emt 0:00:23]} 4. e3 {[%emt 0:00:12]} c5 {[%emt 0:00:31]} 5. c3 {[%emt 0:07:00]} Bd6 {[%emt 0:00:33]} 6. Bg3 {[%emt 0:00:12]} Qc7 {[%emt 0:00:23]} 7. Be2 {[%emt 0:00:22]} Nbd7 {[%emt 0:00:13]} 8. Nbd2 {[%emt 0:00:19]} O-O {[%emt 0:00:54]} 9. O-O {[%emt 0:01:09]} Bxg3 {[%emt 0:00:23]} 10. hxg3 {[%emt 0:00:07]} e5 {[%emt 0:00:11]} 11. dxe5 {[%emt 0:02:17]} Nxe5 {[%emt 0:00:08]} 12. Nxe5 {[%emt 0:00:04]} Qxe5 {[%emt 0:00:09]} 13. c4 {[%emt 0:00:39]} Rd8 {[%emt 0:10:05]} 14. Qb3 {[%emt 0:07:05]} Qe7 {[%emt 0:11:37]} 15. Nf3 {[%emt 0:02:41]} b6 {[%emt 0:02:41]} 16. Rfd1 {[%emt 0:01:42]} Bb7 {[%emt 0:05:57]} 17. a4 {[%emt 0:01:46]} Ba6 {[%emt 0:11:27]} 18. Bf1 {[%emt 0:18:56]} Bxc4 {[%emt 0:03:43]} 19. Bxc4 dxc4 {[%emt 0:03:26]} 20. Qxc4 {[%emt 0:01:25]} Rxd1+ {[%emt 0:03:22]} 21. Rxd1 {[%emt 0:00:34]} Rd8 {[%emt 0:00:54]} 22. Rxd8+ {[%emt 0:06:01]} Qxd8 {[%emt 0:00:08]} 23. a5 {[%emt 0:01:42]} Qd1+ {[%emt 0:12:06]} 24. Qf1 {[%emt 0:05:46]} Qc2 {[%emt 0:08:49]} 25. Ne1 {[%emt 0:05:34]} Qxb2 {[%emt 0:07:04]} 26. Qa6 {[%emt 0:05:17]} g6 {[%emt 0:01:58]} 27. Qxa7 {[%emt 0:03:15]} bxa5 {[%emt 0:01:27]} 28. Qxc5 {[%emt 0:02:59]} Qxf2+ {[%emt 0:03:18]} 29. Kxf2 {[%emt 0:00:21]} Ne4+ {[%emt 0:00:06]} 30. Ke2 {[%emt 0:00:08]} Nxc5 {[%emt 0:00:05]} 31. g4 {[%emt 1:30:17]} Kf8 {[%emt 1:30:55]} 32. Kd2 {[%emt 0:00:12]} Ne4+ {[%emt 0:01:36]} 33. Kc2 {[%emt 0:00:14]} Nf6 {[%emt 0:00:58]} 34. g5 {[%emt 0:00:04]} Ne4 {[%emt 0:00:59]} 35. Nf3 {[%emt 0:00:08]} a4 {[%emt 0:00:33]} 36. Kb2 {[%emt 0:00:14]} Ke7 {[%emt 0:00:33]} 37. Ka3 {[%emt 0:00:17]} Nc5 {[%emt 0:01:38]} 38. Kb4 {[%emt 0:00:32]} Kd6 {[%emt 0:02:03]} 39. Nh2 {[%emt 0:00:33]} Ne4 {[%emt 0:03:40]} 40. Kxa4 {[%emt 0:00:18]} Ke6 {[%emt 0:00:48]} 41. Kb4 {[%emt 0:01:02]} Nxg5 {[%emt 0:00:29]} 42. Kc3 {[%emt 0:00:41]} Ke5 {[%emt 0:02:51]} 43. Kd3 {[%emt 0:00:19]} f5 {[%emt 0:00:55]} 44. Nf1 {[%emt 0:00:28]} Ne4 {[%emt 0:00:00]} 45. Nh2 {[%emt 0:00:00]} Nc5+ {[%emt 0:00:00]} 46. Ke2 {[%emt 0:00:00]} Ke4 {[%emt 0:00:00]} 47. Nf3 {[%emt 0:00:00]} Ne6 {[%emt 0:00:00]} 48. Nd2+ {[%emt 0:00:00]} Ke5 {[%emt 0:00:00]} 49. Nf3+ {[%emt 0:00:00]} Kf6 {[%emt 0:00:00]} 50. Ne1 {[%emt 0:00:00]} Kg5 {[%emt 0:00:00]} 51. Kf2 {[%emt 0:00:00]} Kg4 {[%emt 0:00:00]} 52. Nf3 {[%emt 0:00:00]} h5 {[%emt 0:00:00]} 53. Ne5+ {[%emt 0:00:00]} Kg5 {[%emt 0:00:00]} 54. Nf3+ {[%emt 0:00:00]} Kf6 {[%emt 0:00:00]} 55. Kg3 {[%emt 0:00:00]} Ng5 {[%emt 0:00:00]} 56. Nd4 {[%emt 0:00:00]} Ne4+ {[%emt 0:00:00]} 57. Kf3 {[%emt 0:00:00]} g5 {[%emt 0:00:00]} 58. g3 {[%emt 0:00:00]} g4+ {[%emt 0:00:00]} 59. Kg2 {[%emt 0:00:00]} Nc5 {[%emt 0:00:00]} 60. Ne2 {[%emt 0:00:00]} Nd3 {[%emt 0:00:00]} 61. Nd4 {[%emt 1:07:48]} Ke5 {[%emt 1:27:30]} 62. Kf1 {[%emt 0:00:24]} Ke4 {[%emt 0:00:59]} 63. Kg2 {[%emt 0:01:07]} Nb4 {[%emt 0:01:59]} 64. Kf2 {[%emt 0:01:21]} Nd5 {[%emt 0:00:18]} 65. Nc2 {[%emt 0:00:11]} Kd3 {[%emt 0:00:31]} 0-1

[Event "GER-chT Youth Countries 2020"]
[Site "Berlin"]
[Date "2020.10.02"]
[Round "4"]
[White "Bildat, Emilia"]
[Black "Grabs, Peter"]
[Result "1-0"]
[ECO "A13"]
[WhiteElo "1704"]
[BlackElo "1674"]
[Annotator "NA"]
[PlyCount "71"]
[EventDate "2020.09.30"]
[EventType "team-tourn"]
[EventRounds "7"]
[EventCountry "GER"]
[SourceTitle "playchess.com"]
[Source "ChessBase"]
[SourceQuality "1"]
[TimeControl "30/5400+30:0"]

1. c4 {[%emt 0:00:00]} e6 {[%emt 0:00:00]} 2. g3 {[%emt 0:00:00]} d5 {[%emt 0:00:12]} 3. Bg2 {[%emt 0:00:04]} Nf6 {[%emt 0:03:08]} 4. Nf3 {[%emt 0:00:58]} Bd6 {[%emt 0:01:01]} 5. O-O {[%emt 0:01:20]} O-O {[%emt 0:00:13]} 6. b3 {[%emt 0:00:48]} c6 {[%emt 0:01:35]} 7. Bb2 {[%emt 0:00:54]} Re8 {[%emt 0:00:31]} 8. Nc3 {[%emt 0:01:08]} e5 {[%emt 0:05:16]} 9. cxd5 {[%emt 0:02:03]} cxd5 {[%emt 0:00:12]} 10. Nb5 {[%emt 0:01:36]} Nc6 {[%emt 0:01:42]} 11. Nxd6 {[%emt 0:02:21]} Qxd6 {[%emt 0:00:09]} 12. d4 {[%emt 0:03:15]} e4 {[%emt 0:11:26]} 13. Ne5 {[%emt 0:03:01]} Qe6 {[%emt 0:00:41]} 14. f3 {[%emt 0:06:19]} Nxe5 {[%emt 0:05:22]} 15. dxe5 {[%emt 0:00:12]} Nd7 {[%emt 0:00:18]} 16. fxe4 {[%emt 0:11:46]} dxe4 {[%emt 0:00:38]} 17. Bxe4 {[%emt 0:00:35]} Nxe5 {[%emt 0:00:24]} 18. Bd5 {[%emt 0:01:56]} Qh6 {[%emt 0:05:34]} 19. Bxe5 {[%emt 0:02:31]} Qe3+ {[%emt 0:00:43]} 20. Kh1 {[%emt 0:00:54]} Qxe5 {[%emt 0:02:05]} 21. Bxf7+ {[%emt 0:00:50]} Kh8 {[%emt 0:00:08]} 22. Bxe8 {[%emt 0:00:11]} Qxe8 {[%emt 0:00:05]} 23. Qd6 {[%emt 0:01:50]} Bh3 {[%emt 0:01:13]} 24. Rf2 {[%emt 0:03:43]} Qe4+ {[%emt 0:00:51]} 25. Kg1 {[%emt 0:00:31]} h6 {[%emt 0:01:12]} 26. Rf8+ {[%emt 0:05:24]} Rxf8 {[%emt 0:02:35]} 27. Qxf8+ {[%emt 0:00:05]} Kh7 {[%emt 0:00:04]} 28. Qf2 {[%emt 0:00:15]} Be6 {[%emt 0:01:37]} 29. Rf1 {[%emt 0:04:31]} g6 {[%emt 0:00:53]} 30. Qf3 {[%emt 0:01:23]} Qd4+ {[%emt 0:00:34]} 31. e3 {[%emt 1:30:20]} Qd7 {[%emt 1:30:29]} 32. Rd1 {[%emt 0:02:17]} Qc8 {[%emt 0:02:54]} 33. Qf6 {[%emt 0:01:26]} Qc2 {[%emt 0:01:41]} 34. Qe7+ {[%emt 0:00:46]} Kh8 {[%emt 0:00:21]} 35. Rd8+ {[%emt 0:00:22]} Bg8 {[%emt 0:00:33]} 36. Qf6+ {[%emt 0:00:11]} 1-0

[Event "GER-chT Youth Countries 2020"]
[Site "Berlin"]
[Date "2020.10.02"]
[Round "4"]
[White "Zimmer, Luca"]
[Black "Yi, Danny"]
[Result "0-1"]
[ECO "C54"]
[WhiteElo "1690"]
[BlackElo "2266"]
[Annotator "ChessBase"]
[PlyCount "41"]
[EventDate "2020.09.30"]
[EventType "team-tourn"]
[EventRounds "7"]
[EventCountry "GER"]
[SourceTitle "playchess.com"]
[Source "ChessBase"]
[SourceQuality "1"]
[TimeControl "30/5400+30:0"]

1. e4 {[%emt 0:00:00]} e5 {[%emt 0:00:00]} 2. Nf3 {[%emt 0:00:00]} Nc6 {[%emt 0:00:00]} 3. Bc4 {[%emt 0:00:00]} Bc5 {[%emt 0:00:00]} 4. c3 {[%emt 0:00:07]} Nf6 {[%emt 0:00:00]} 5. d3 {[%emt 0:00:06]} a6 {[%emt 0:01:56]} 6. O-O {[%emt 0:00:23]} Ba7 {[%emt 0:03:24]} 7. Be3 {[%emt 0:02:44]} O-O {[%emt 0:02:27]} 8. Nbd2 {[%emt 0:02:26]} h6 {[%emt 0:04:24]} 9. Bb3 {[%emt 0:02:05]} Re8 {[%emt 0:02:17]} 10. Bxa7 {[%emt 0:13:28]} Nxa7 {[%emt 0:02:36]} 11. Nc4 {[%emt 0:05:23]} d6 {[%emt 0:01:15]} 12. Ne3 {[%emt 0:00:17]} c5 {[%emt 0:02:31]} 13. Nh4 {[%emt 0:07:08]} Nc6 {[%emt 0:22:04]} 14. Nhf5 {[%emt 0:04:57]} Ne7 {[%emt 0:00:56]} 15. g4 {[%emt 0:20:08]} Ng6 {[%emt 0:05:10]} 16. Ng2 {[%emt 0:13:48]} Be6 {[%emt 0:05:59]} 17. h4 {[%emt 0:10:21]} Nh7 {[%emt 0:05:36]} 18. h5 {[%emt 0:03:42]} Nf4 {[%emt 0:06:43]} 19. Nxf4 {[%emt 0:01:35]} exf4 {[%emt 0:00:10]} 20. Kg2 {[%emt 0:05:37]} d5 {[%emt 0:14:43]} 21. Bxd5 {[%emt 0:02:39]} 0-1

[Event "GER-chT Youth Countries 2020"]
[Site "Berlin"]
[Date "2020.10.02"]
[Round "4"]
[White "Tovmasyan, Minas"]
[Black "Muedder, Melanie"]
[Result "0-1"]
[ECO "D97"]
[WhiteElo "1658"]
[BlackElo "2039"]
[Annotator "ChessBase"]
[PlyCount "43"]
[EventDate "2020.09.30"]
[EventType "team-tourn"]
[EventRounds "7"]
[EventCountry "GER"]
[SourceTitle "playchess.com"]
[Source "ChessBase"]
[SourceQuality "1"]
[TimeControl "30/5400+30:0"]

1. d4 {[%emt 0:00:00]} Nf6 {[%emt 0:00:00]} 2. c4 {[%emt 0:00:00]} g6 {[%emt 0:00:00]} 3. Nc3 {[%emt 0:00:00]} d5 {[%emt 0:00:00]} 4. Nf3 {[%emt 0:00:25]} Bg7 {[%emt 0:00:26]} 5. Qb3 {[%emt 0:00:29]} dxc4 {[%emt 0:00:33]} 6. Qxc4 {[%emt 0:00:07]} O-O {[%emt 0:00:54]} 7. e4 {[%emt 0:00:22]} Nc6 {[%emt 0:00:40]} 8. Be2 {[%emt 0:14:05]} Nd7 {[%emt 0:02:49]} 9. Be3 {[%emt 0:06:41]} Nb6 {[%emt 0:07:46]} 10. Qb3 {[%emt 0:16:27]} Nxd4 {[%emt 0:20:57]} 11. Nxd4 {[%emt 0:00:26]} Bxd4 {[%emt 0:00:08]} 12. Rd1 {[%emt 0:01:51]} c5 {[%emt 0:06:29]} 13. Nd5 {[%emt 0:22:16]} Nxd5 {[%emt 0:10:32]} 14. Bxd4 {[%emt 0:05:43]} Qa5+ {[%emt 0:06:32]} 15. Rd2 {[%emt 0:12:30]} Nf4 {[%emt 0:06:50]} 16. Bc3 {[%emt 0:03:39]} Qc7 {[%emt 0:01:47]} 17. Bf3 {[%emt 0:04:44]} Be6 {[%emt 0:07:08]} 18. Qd1 {[%emt 0:02:12]} b5 {[%emt 0:05:41]} 19. g3 {[%emt 0:01:51]} b4 {[%emt 0:02:50]} 20. Bxb4 {[%emt 0:01:38]} cxb4 {[%emt 0:00:24]} 21. gxf4 {[%emt 0:00:06]} Qxf4 {[%emt 0:00:14]} 22. Rd4 {[%emt 0:01:29]} 0-1

[Event "GER-chT Youth Countries 2020"]
[Site "Berlin"]
[Date "2020.10.02"]
[Round "4"]
[White "Schreidl, Michael"]
[Black "Voigt, Anastasia"]
[Result "0-1"]
[ECO "C54"]
[WhiteElo "1640"]
[BlackElo "1562"]
[Annotator "NA"]
[PlyCount "84"]
[EventDate "2020.09.30"]
[EventType "team-tourn"]
[EventRounds "7"]
[EventCountry "GER"]
[SourceTitle "playchess.com"]
[Source "ChessBase"]
[SourceQuality "1"]
[TimeControl "30/5400+30:0"]

1. e4 {[%emt 0:00:00]} e5 {[%emt 0:00:00]} 2. Nf3 {[%emt 0:00:00]} Nc6 {[%emt 0:00:00]} 3. d4 {[%emt 0:00:00]} exd4 {[%emt 0:00:00]} 4. Bc4 {[%emt 0:00:00]} Bc5 {[%emt 0:01:13]} 5. c3 {[%emt 0:00:00]} Nf6 {[%emt 0:01:51]} 6. e5 {[%emt 0:00:02]} d5 {[%emt 0:07:12]} 7. Bb5 {[%emt 0:00:03]} Ne4 {[%emt 0:05:50]} 8. cxd4 {[%emt 0:00:22]} Bb4+ {[%emt 0:01:41]} 9. Bd2 {[%emt 0:00:45]} Nxd2 {[%emt 0:00:59]} 10. Nbxd2 {[%emt 0:00:05]} O-O {[%emt 0:03:15]} 11. a3 {[%emt 0:04:18]} Ba5 {[%emt 0:02:55]} 12. b4 {[%emt 0:01:37]} Bb6 {[%emt 0:00:47]} 13. Nb3 {[%emt 0:02:48]} f6 {[%emt 0:09:46]} 14. Qc2 {[%emt 0:13:58]} Ne7 {[%emt 0:04:08]} 15. Bd3 {[%emt 0:02:14]} h6 {[%emt 0:03:18]} 16. exf6 {[%emt 0:05:59]} Rxf6 {[%emt 0:01:19]} 17. O-O {[%emt 0:08:17]} Bf5 {[%emt 0:01:01]} 18. Bxf5 {[%emt 0:02:23]} Nxf5 19. Nc5 {[%emt 0:01:55]} Qc8 {[%emt 0:05:36]} 20. Qd3 {[%emt 0:07:01]} Nd6 {[%emt 0:12:57]} 21. Ne5 {[%emt 0:02:57]} Qf5 {[%emt 0:03:05]} 22. Qb3 {[%emt 0:12:36]} c6 {[%emt 0:02:51]} 23. g4 {[%emt 0:07:54]} Qf4 {[%emt 0:06:14]} 24. Rad1 {[%emt 0:07:23]} Bxc5 {[%emt 0:07:25]} 25. bxc5 Nb5 26. Qb2 {[%emt 0:03:35]} Re8 {[%emt 0:01:00]} 27. Rfe1 b6 {[%emt 0:13:15]} 28. a4 {[%emt 0:05:38]} Nc7 {[%emt 0:00:00]} 29. cxb6 {[%emt 0:04:17]} axb6 {[%emt 0:00:33]} 30. Re3 {[%emt 0:00:44]} Rxe5 31. dxe5 {[%emt 1:31:35]} Qxg4+ {[%emt 1:30:42]} 32. Rg3 {[%emt 0:00:28]} Qxd1+ {[%emt 0:00:54]} 33. Kg2 {[%emt 0:01:23]} Rf7 34. Qxb6 {[%emt 0:00:42]} Ne6 {[%emt 0:01:13]} 35. h3 Qxa4 {[%emt 0:01:52]} 36. Qb8+ {[%emt 0:00:48]} Rf8 37. Qd6 Qe4+ {[%emt 0:00:58]} 38. f3 {[%emt 0:01:12]} Nf4+ 39. Kf1 {[%emt 0:01:04]} Qe2+ {[%emt 0:00:25]} 40. Kg1 {[%emt 0:00:05]} Qe1+ {[%emt 0:00:00]} 41. Kh2 {[%emt 0:00:16]} Qf2+ {[%emt 0:00:02]} 42. Kh1 Qxg3 0-1

[Event "GER-chT Youth Countries 2020"]
[Site "Berlin"]
[Date "2020.10.02"]
[Round "4"]
[White "Jacoby, Angelina"]
[Black "Koenig, Emmilie"]
[Result "0-1"]
[ECO "A20"]
[WhiteElo "1630"]
[BlackElo "1518"]
[Annotator "NA"]
[PlyCount "109"]
[EventDate "2020.09.30"]
[EventType "team-tourn"]
[EventRounds "7"]
[EventCountry "GER"]
[SourceTitle "playchess.com"]
[Source "ChessBase"]
[SourceQuality "1"]
[TimeControl "30/5400+30:0"]

1. c4 {[%emt 0:00:00]} e5 {[%emt 0:14:36]} 2. g3 {[%emt 0:00:00]} Nc6 {[%emt 0:00:53]} 3. Bg2 {[%emt 0:00:13]} Nf6 {[%emt 0:00:43]} 4. Nc3 {[%emt 0:00:37]} g6 {[%emt 0:01:11]} 5. e3 {[%emt 0:07:23]} Bg7 {[%emt 0:05:39]} 6. Nge2 {[%emt 0:03:35]} O-O {[%emt 0:05:01]} 7. O-O {[%emt 0:00:55]} Re8 {[%emt 0:02:10]} 8. d3 {[%emt 0:00:38]} d6 {[%emt 0:01:48]} 9. h3 {[%emt 0:00:32]} Rb8 {[%emt 0:05:20]} 10. Rb1 {[%emt 0:04:57]} Bd7 {[%emt 0:03:50]} 11. b4 {[%emt 0:02:57]} a6 {[%emt 0:03:05]} 12. a3 {[%emt 0:05:35]} h6 {[%emt 0:02:37]} 13. Bb2 {[%emt 0:03:05]} Kh7 {[%emt 0:02:12]} 14. e4 {[%emt 0:06:08]} Kg8 {[%emt 0:07:43]} 15. Kh2 {[%emt 0:06:00]} Qc8 {[%emt 0:03:46]} 16. Nd5 Nxd5 {[%emt 0:04:24]} 17. exd5 {[%emt 0:12:03]} Ne7 {[%emt 0:03:16]} 18. f4 {[%emt 0:05:40]} Nf5 {[%emt 0:02:07]} 19. Bc1 {[%emt 0:03:25]} exf4 {[%emt 0:05:09]} 20. Nxf4 {[%emt 0:07:39]} Ne3 {[%emt 0:04:20]} 21. Bxe3 {[%emt 0:00:30]} Rxe3 {[%emt 0:00:05]} 22. Qd2 {[%emt 0:01:35]} Re7 {[%emt 0:05:08]} 23. h4 {[%emt 0:04:01]} h5 {[%emt 0:03:41]} 24. Nh3 {[%emt 0:04:24]} Bxh3 {[%emt 0:03:13]} 25. Bxh3 {[%emt 0:00:08]} Qe8 {[%emt 0:00:38]} 26. Rbe1 {[%emt 0:01:49]} Kh7 {[%emt 0:00:48]} 27. Rxe7 {[%emt 0:00:38]} Qxe7 {[%emt 0:00:20]} 28. Re1 {[%emt 0:00:13]} Qf8 {[%emt 0:00:29]} 29. Qe3 {[%emt 0:00:28]} Bf6 {[%emt 0:01:31]} 30. Qf4 {[%emt 0:04:41]} Qg7 {[%emt 0:00:47]} 31. Rf1 {[%emt 1:30:29]} Bb2 {[%emt 1:32:03]} 32. a4 {[%emt 0:01:58]} Rf8 {[%emt 0:00:54]} 33. Qg5 {[%emt 0:05:43]} Re8 {[%emt 0:03:35]} 34. Bd7 {[%emt 0:01:26]} f6 {[%emt 0:01:51]} 35. Bxe8 {[%emt 0:00:46]} fxg5 {[%emt 0:00:04]} 36. Rf7 {[%emt 0:00:16]} Qxf7 {[%emt 0:00:30]} 37. Bxf7 {[%emt 0:00:10]} g4 {[%emt 0:00:12]} 38. Be8 {[%emt 0:02:06]} b6 {[%emt 0:01:04]} 39. Bc6 {[%emt 0:01:47]} Bc3 {[%emt 0:00:27]} 40. b5 a5 41. Kg2 {[%emt 0:01:30]} Kg7 {[%emt 0:00:40]} 42. Kf1 {[%emt 0:01:55]} Kf7 {[%emt 0:02:15]} 43. Bd7 {[%emt 0:00:57]} g5 {[%emt 0:00:00]} 44. hxg5 {[%emt 0:00:00]} Kg6 {[%emt 0:00:00]} 45. Kg2 {[%emt 0:00:00]} Kxg5 {[%emt 0:00:00]} 46. Be6 {[%emt 0:00:00]} Bd4 {[%emt 0:00:00]} 47. Bd7 {[%emt 0:00:00]} h4 {[%emt 0:00:00]} 48. gxh4+ {[%emt 0:00:00]} Kxh4 {[%emt 0:00:00]} 49. Bf5 {[%emt 0:00:00]} Kg5 {[%emt 0:00:00]} 50. Bh7 {[%emt 0:00:00]} Kf4 {[%emt 0:00:00]} 51. Be4 {[%emt 0:00:00]} Be3 {[%emt 0:00:00]} 52. Bh7 {[%emt 0:00:00]} Kg5 {[%emt 0:00:00]} 53. Be4 {[%emt 0:00:00]} Bd4 {[%emt 0:00:00]} 54. Bh7 {[%emt 0:00:00]} Kf4 {[%emt 0:00:00]} 55. Be4 {[%emt 0:00:00]} 0-1